bitfinex-derivatives/quotes_ETHF0:USTF0_20260208
["timestamp","ask_amount","ask_price","bid_price","bid_amount"]
[1770565148721,19.27381151,2110.0,2108.9,4.46044761]
[1770565149017,8.66658658,2109.9,2109.0,0.8979495]
[1770565149220,8.66658658,2109.9,2109.0,2.8278836]
[1770565149423,8.66658658,2109.9,2109.0,7.13033772]
[1770565149615,19.27381151,2109.8,2109.2,4.1878089]
[1770565149810,28.84267554,2109.8,2109.2,4.1878089]
[1770565150014,9.56434796,2109.7,2109.0,2.8278836]
[1770565150215,9.56434796,2109.5,2108.6,4.83401308]
[1770565150420,9.56434796,2109.5,2108.8,4.59671308]
[1770565150622,19.27381151,2109.4,2108.8,4.59671308]
[1770565150810,9.56434796,2109.3,2108.6,4.85346476]
[1770565151014,9.56434796,2109.3,2108.7,4.30580021]
[1770565152317,9.56434796,2109.1,2108.7,4.30580021]
[1770565152518,9.56434796,2109.6,2108.6,4.51954295]
[1770565152719,9.56434796,2109.4,2108.7,8.8156355]
[1770565152918,9.56434796,2109.4,2108.5,8.74273056]
[1770565153114,9.56434796,2109.2,2108.6,4.29631946]
[1770565153626,9.56434796,2109.0,2108.3,4.25478939]
[1770565153920,9.56434796,2109.0,2108.2,0.00581142]
[1770565154112,9.56434796,2108.8,2108.2,0.00581142]
[1770565155421,10.87389817,2108.6,2108.2,0.00581142]
[1770565155823,10.87389817,2108.4,2108.2,0.00581142]
[1770565156015,10.87389817,2108.4,2107.9,11.11517572]
[1770565156216,25.84723454,2108.4,2107.9,11.11517572]
[1770565157022,25.84723454,2108.4,2107.9,11.11942477]
[1770565157423,10.87389817,2108.3,2107.9,11.11942477]
[1770565157624,10.87722325,2108.3,2107.9,11.11942477]
[1770565157923,0.00332508,2108.3,2107.9,11.11942477]
[1770565161823,10.87389817,2108.9,2107.9,11.11942477]
[1770565162026,10.87389817,2108.8,2107.9,11.11942477]
[1770565162817,14.97333637,2108.7,2107.9,11.11942477]
[1770565165417,14.97333637,2108.7,2108.2,10.98972072]
[1770565165822,0.0042865,2108.8,2108.2,10.98972072]
[1770565166022,14.97762287,2108.8,2108.2,10.98972072]
[1770565166531,10.87389817,2109.0,2108.3,0.23734]
[1770565167525,10.87917806,2109.0,2108.3,0.89430109]
[1770565167930,10.87917806,2109.0,2108.4,0.71605509]
[1770565168925,1.11282056,2108.9,2108.4,0.71605509]
[1770565169120,1.11282056,2108.9,2108.5,0.55927327]
[1770565169627,0.00527989,2109.0,2108.5,0.55927327]
[1770565169827,1.11810045,2109.0,2108.5,0.55927327]
[1770565170121,40.8,2109.9,2107.9,0.00424905]
[1770565170122,10.87389817,2109.8,2108.7,0.40782538]
[1770565170326,10.87389817,2109.4,2108.7,0.40782538]
[1770565170729,11.98671873,2109.3,2108.7,0.40782538]
[1770565170928,10.87389817,2109.3,2108.7,0.40782538]
[1770565171129,11.98671873,2109.2,2108.7,0.40782538]
[1770565172030,1.11282056,2109.1,2108.7,0.40782538]
[1770565176134,0.00469961,2109.3,2108.7,0.64511538]
[1770565176433,0.00469961,2109.3,2108.7,0.23729]
[1770565176434,1.03192633,2109.3,2108.7,0.23729]
[1770565177330,11.9058245,2109.3,2108.7,0.23729]
[1770565179535,10.87389817,2109.6,2109.0,0.23725]
[1770565179932,10.87389817,2110.7,2109.1,0.23724]
[1770565180128,10.87389817,2110.5,2109.2,0.23724]
[1770565180527,10.87821344,2110.5,2109.2,0.23724]
[1770565181129,10.87821344,2110.5,2109.3,0.23722]
[1770565181333,10.87821344,2110.5,2109.4,0.23721]
[1770565181531,10.87821344,2110.5,2109.4,0.24241049]
[1770565182233,10.87821344,2110.5,2109.5,0.2372]
[1770565182426,10.87389817,2110.7,2110.1,0.23713]
[1770565183437,10.87747065,2110.7,2110.1,0.23713]
[1770565186438,10.87747065,2110.7,2109.5,7.0860897]
[1770565186439,10.87747065,2110.7,2109.6,4.46485636]
[1770565186833,10.87747065,2110.7,2109.6,10.59884614]
[1770565189536,10.87747065,2110.7,2109.6,10.36165614]
[1770565189738,10.87747065,2110.7,2109.9,0.23715]
[1770565193739,10.87747065,2110.7,2110.0,0.23715]
[1770565193942,10.40098065,2110.7,2110.3,0.23711]
[1770565194148,10.39488902,2110.7,2110.3,0.23711]
[1770565194940,0.00357248,2110.7,2110.3,0.23711]
[1770565196741,0.00357248,2110.7,2110.6,0.23708]
[1770565196941,9.09653093,2111.1,2110.6,0.23708]
[1770565197139,0.25,2112.0,2110.6,4.22766636]
[1770565197344,0.25,2112.0,2111.4,0.23698]
[1770565197845,0.25402795,2112.0,2111.4,0.24038824]
[1770565198243,0.25402795,2112.0,2111.5,6.11068797]
[1770565198448,9.42517517,2112.0,2111.5,6.11068797]
[1770565198636,9.42517517,2112.0,2111.5,0.31467913]
[1770565198836,9.42517517,2112.0,2111.4,0.24038824]
[1770565199442,9.42517517,2112.0,2110.8,24.43371636]
[1770565199651,9.42517517,2112.0,2110.8,20.52139677]
[1770565200448,9.42517517,2112.0,2110.8,20.52605431]
[1770565201646,9.42517517,2112.0,2110.9,6.10547629]
[1770565202047,9.42517517,2112.0,2111.0,0.23703]
[1770565202441,9.42517517,2112.0,2110.9,6.10547629]
[1770565202442,9.42517517,2112.0,2111.1,6.3973386]
[1770565202850,9.42517517,2112.0,2111.1,0.23702]
[1770565203043,9.42517517,2112.0,2111.2,6.1603186]
[1770565203348,9.42517517,2112.0,2111.2,6.3973286]
[1770565203742,9.42517517,2112.0,2111.3,0.237]
[1770565203943,9.42517517,2112.0,2111.4,0.23699]
[1770565204150,40.8,2113.2,2111.4,6.29668513]
[1770565204151,9.05928724,2113.1,2111.4,6.29668513]
[1770565204350,9.05928724,2113.1,2111.3,4.22766636]
[1770565204751,9.05928724,2113.1,2111.9,0.23693]
[1770565205245,9.06391237,2113.1,2112.0,6.03724758]
[1770565206051,9.06391237,2113.1,2111.9,0.23693]
[1770565206252,9.06391237,2113.1,2111.7,11.008]
[1770565209354,9.06391237,2113.1,2111.7,11.24495]
[1770565209949,9.06391237,2113.1,2111.8,6.33695821]
[1770565210553,9.06391237,2113.1,2111.9,0.23693]
[1770565211054,9.06391237,2113.1,2112.0,6.11888339]
[1770565211656,9.06391237,2113.1,2112.0,6.35580339]
[1770565211852,9.03781486,2113.1,2112.6,0.23685]
[1770565212463,8.63044094,2113.8,2112.8,0.23683]
[1770565213259,8.63044094,2113.8,2112.9,6.43039169]
[1770565213459,8.6338144,2113.8,2112.9,6.43607584]
[1770565213758,8.6338144,2113.8,2113.0,0.23681]
[1770565214259,8.6338144,2113.8,2113.1,6.02847964]
[1770565214454,8.6338144,2113.8,2113.1,6.26527964]
[1770565215056,8.91384007,2113.8,2113.2,0.23678]
[1770565215257,0.00337346,2113.8,2113.2,0.23678]
[1770565215454,7.24535375,2115.6,2113.9,6.2923524]
[1770565215661,7.24535375,2114.8,2113.9,6.2923524]
[1770565216155,26.905,2116.0,2114.5,6.15941973]
[1770565216156,7.24535375,2115.8,2114.5,6.15941973]
[1770565216458,8.41331267,2115.8,2115.1,6.15941973]
[1770565216866,7.24535375,2115.7,2115.1,6.15941973]
[1770565217064,8.41331267,2115.8,2115.1,6.15941973]
[1770565217265,7.24535375,2115.7,2115.1,6.15941973]
[1770565217455,8.41331267,2115.8,2115.1,6.15941973]
[1770565217655,7.49535375,2116.0,2115.2,6.23323848]
[1770565217869,7.49535375,2116.0,2115.1,0.32441756]
[1770565218168,7.49535375,2116.0,2114.5,0.00440659]
[1770565218369,7.49535375,2116.0,2114.5,7.13695246]
[1770565218668,7.50031604,2116.0,2114.5,0.00440659]
[1770565219260,7.50031604,2116.0,2113.8,6.81424459]
[1770565219460,7.73679604,2116.0,2113.8,6.81424459]
[1770565219662,7.24535375,2115.8,2113.8,6.26348738]
[1770565219867,7.48185375,2115.8,2113.6,6.8139744]
[1770565220068,7.24535375,2115.6,2113.5,7.0853397]
[1770565220272,7.24535375,2115.6,2113.5,13.85683108]
[1770565220465,7.24535375,2115.6,2113.6,6.65867341]
[1770565220768,7.24535375,2115.6,2113.5,7.09036558]
[1770565220962,7.24535375,2115.6,2113.6,6.6620668]
[1770565221158,7.24535375,2115.6,2114.0,6.6620668]
[1770565221363,7.24535375,2115.6,2113.9,6.8987768]
[1770565221765,7.24535375,2115.6,2114.0,0.23669]
[1770565221965,7.24535375,2115.6,2114.1,6.50846763]
[1770565222160,7.24535375,2115.6,2114.1,6.74514763]
[1770565222372,7.24535375,2115.6,2114.3,6.61514505]
[1770565222872,7.24535375,2115.6,2114.1,0.23668]
[1770565223672,7.24535375,2115.4,2114.1,0.23668]
[1770565224273,7.24535375,2115.4,2113.9,6.46303033]
[1770565225466,7.24535375,2115.4,2113.9,6.69973033]
[1770565225665,7.24535375,2115.4,2114.1,6.04606438]
[1770565225874,7.24535375,2115.4,2114.0,6.28276438]
[1770565226075,7.24535375,2115.3,2114.0,6.28276438]
[1770565227477,7.24535375,2115.3,2114.2,5.88689855]
[1770565227874,7.24535375,2115.3,2114.1,0.23669]
[1770565228471,7.24535375,2115.3,2114.1,6.02905596]
[1770565228777,7.24535375,2115.3,2113.7,5.64881891]
[1770565229272,7.24535375,2115.3,2113.9,5.65194767]
[1770565229473,7.24535375,2115.3,2113.8,11.77720556]
[1770565229671,7.24535375,2115.3,2113.8,5.50977606]
[1770565230475,7.48191375,2115.3,2113.5,0.31561558]
[1770565230778,7.48191375,2115.3,2113.5,0.00502588]
[1770565230970,7.48191375,2115.3,2113.5,5.43775363]
[1770565231666,7.48191375,2115.3,2113.5,0.00502588]
[1770565231979,7.24535375,2115.1,2113.5,0.00502588]
[1770565232179,7.24535375,2114.9,2113.5,0.00502588]
[1770565232480,28.328,2115.0,2112.6,0.23685]
[1770565232481,7.24535375,2114.4,2112.6,0.23685]
[1770565232682,7.48201375,2114.4,2112.6,0.23685]
[1770565232882,7.24535375,2114.2,2112.6,0.56017942]
[1770565233180,7.24535375,2114.2,2112.0,5.17331654]
[1770565233375,7.24535375,2114.0,2112.0,5.17816971]
[1770565233575,7.24535375,2113.8,2112.1,5.27376053]
[1770565234374,7.24535375,2113.8,2112.1,0.23691]
[1770565235580,7.24535375,2113.8,2112.6,4.86393749]
[1770565236981,7.24535375,2113.8,2112.5,0.23686]
[1770565236982,7.24535375,2113.8,2112.1,4.80608677]
[1770565237285,7.24535375,2113.8,2112.3,4.80675021]
[1770565238185,7.24535375,2113.8,2112.2,0.23689]
[1770565238584,7.24535375,2113.8,2112.1,4.61172867]
[1770565238785,7.24535375,2113.8,2112.0,0.31833563]
[1770565239083,7.24535375,2113.8,2112.0,4.80094117]
[1770565239280,7.24535375,2113.8,2112.0,0.31833563]
[1770565239485,7.24535375,2113.8,2112.0,4.67177243]
[1770565239987,7.24535375,2113.8,2112.0,4.90869243]
[1770565240186,7.24535375,2113.8,2112.1,4.45116893]
[1770565240679,7.24535375,2113.8,2112.3,4.32322031]
[1770565242888,7.24535375,2113.8,2112.2,3.04265134]
[1770565243286,7.24535375,2113.8,2112.2,4.2564688]
[1770565243890,7.24535375,2113.8,2112.1,2.80575134]
[1770565244082,7.24535375,2113.8,2112.0,0.31833563]
[1770565244890,7.24535375,2113.8,2112.0,3.9836694]
[1770565246084,0.2368,2113.2,2112.0,0.00485317]
[1770565246392,7.24535375,2113.8,2111.4,3.90061785]
[1770565246393,5.84038277,2113.0,2111.4,3.90061785]
[1770565246691,5.84038277,2112.8,2111.4,3.58016796]
[1770565247289,5.84038277,2112.8,2111.4,3.58411259]
[1770565247791,5.84038277,2112.8,2111.4,0.00394463]
[1770565250596,5.84038277,2112.8,2111.4,3.37325607]
[1770565252190,5.84038277,2112.6,2111.4,3.37325607]
[1770565252495,5.84436364,2112.6,2111.4,3.37325607]
[1770565253494,5.84436364,2112.6,2111.4,0.00394463]
[1770565256100,6.08122364,2112.6,2110.9,0.23704]
[1770565256996,6.08122364,2112.6,2110.9,2.41930053]
[1770565257194,6.08122364,2112.6,2110.9,2.42332177]
[1770565258596,6.08122364,2112.6,2110.9,0.24106124]
[1770565259398,6.08122364,2112.6,2110.9,2.26375807]
[1770565260497,5.84038277,2112.4,2110.9,0.00402124]
[1770565263797,5.84038277,2112.2,2110.9,1.55520853]
[1770565264002,5.84038277,2112.2,2111.0,1.54604874]
[1770565264400,5.84038277,2112.2,2110.9,0.24107124]
[1770565264905,5.84038277,2112.2,2110.9,1.68561421]
[1770565265905,5.84038277,2112.2,2111.0,1.34509557]
[1770565267505,5.84038277,2113.2,2112.3,1.24578864]
[1770565267708,5.84038277,2113.2,2112.2,0.23689]
[1770565268304,5.84038277,2113.2,2112.2,1.49953135]
[1770565268602,5.84487282,2113.2,2112.2,1.49953135]
[1770565269003,0.00449005,2113.2,2112.4,4.0143148]
[1770565269209,0.00449005,2113.2,2112.5,1.20856346]
[1770565269404,5.84487282,2113.2,2112.5,1.20856346]
[1770565270200,0.00449005,2113.2,2112.5,4.0143148]
[1770565270509,0.00449005,2113.2,2112.6,1.25329569]
[1770565271501,5.84487282,2113.2,2112.4,0.00563668]
[1770565273509,5.84487282,2113.2,2111.9,2.80575134]
[1770565273905,5.84487282,2113.2,2111.8,3.97744792]
[1770565274409,5.84487282,2113.2,2111.8,3.98088183]
[1770565274713,5.84487282,2113.2,2111.8,1.17513049]
[1770565275013,5.84487282,2113.2,2111.8,0.24037391]
[1770565275710,5.84487282,2113.2,2111.8,0.00343391]
[1770565276710,4.37252863,2112.9,2111.3,0.237]
[1770565277106,4.60934863,2112.9,2111.3,0.237]
[1770565277307,4.60934863,2112.9,2111.1,2.80575134]
[1770565277615,4.60934863,2112.9,2111.1,2.80969787]
[1770565277815,4.37252863,2112.7,2111.1,2.80969787]
[1770565280716,4.37252863,2112.7,2111.1,0.00394653]
[1770565281416,4.37252863,2112.7,2111.2,0.00371591]
[1770565281617,4.37252863,2112.7,2111.3,0.237]
[1770565281912,4.37252863,2112.7,2111.4,2.80575134]
[1770565282918,4.37252863,2112.7,2111.5,2.80575134]
[1770565283313,4.37252863,2112.5,2111.5,2.80575134]
[1770565283910,4.37252863,2112.5,2111.5,3.04273134]
[1770565284315,4.37252863,2112.5,2111.5,0.23698]
[1770565284514,4.37252863,2112.7,2111.6,3.04271134]
[1770565284911,4.37252863,2112.7,2111.7,2.80575134]
[1770565285112,4.37252863,2112.7,2111.7,3.04270134]
[1770565286417,4.37252863,2112.7,2111.8,2.80575134]
[1770565287618,4.37252863,2112.7,2111.6,2.80575134]
[1770565288716,4.37252863,2112.7,2111.4,2.80575134]
[1770565289512,4.37252863,2112.7,2111.3,2.80575134]
[1770565289809,4.37252863,2112.5,2111.3,2.80575134]
[1770565290621,4.37252863,2113.0,2111.9,0.23693]
[1770565291120,4.37252863,2113.0,2111.9,3.04268134]
[1770565294021,4.37252863,2113.0,2112.0,2.80575134]
[1770565294222,4.37252863,2113.0,2112.1,2.80575134]
[1770565294720,4.37252863,2113.0,2112.1,3.04266134]
[1770565301747,4.37252863,2113.0,2111.5,0.622]
[1770565301748,4.37252863,2113.0,2111.8,2.80575134]
[1770565302043,4.37252863,2113.0,2111.7,2.80575134]
[1770565302240,4.37252863,2112.9,2111.7,2.80575134]
[1770565306443,4.37252863,2112.9,2111.5,2.80575134]
[1770565306639,4.20778656,2112.8,2111.5,2.80575134]
[1770565310343,4.20778656,2112.8,2111.7,0.23695]
[1770565310651,4.20778656,2112.8,2111.8,2.80575134]
[1770565311953,4.2090572,2113.1,2112.3,2.80575134]
[1770565316048,4.2090572,2113.1,2112.3,3.04263134]
[1770565316355,4.2090572,2113.1,2112.4,2.80575134]
[1770565317151,4.2090572,2113.1,2112.3,3.04263134]
[1770565317552,4.2090572,2113.1,2112.2,2.80575134]
[1770565318454,4.2090572,2113.1,2112.0,2.80575134]
[1770565319851,4.2090572,2113.1,2111.9,2.80575134]
[1770565320156,4.2090572,2113.1,2112.0,2.80575134]
[1770565320557,4.2090572,2113.1,2111.8,2.80575134]
[1770565321254,4.4458572,2113.1,2111.6,2.83050786]
[1770565323063,4.19703012,2112.9,2111.6,2.83050786]
[1770565323256,4.19703012,2112.7,2111.6,2.83050786]
[1770565324165,4.19703012,2112.7,2111.5,2.83050786]
[1770565325161,4.19703012,2112.7,2111.4,4.22766636]
[1770565325162,4.19703012,2112.7,2111.4,2.83050786]
[1770565328665,4.1996988,2112.5,2111.4,2.83050786]
[1770565330459,4.1996988,2112.5,2111.5,2.83050786]
[1770565331063,4.1996988,2112.5,2111.7,2.83050786]
[1770565331370,4.1996988,2112.5,2111.6,2.83050786]
[1770565331571,4.20238379,2112.3,2111.6,2.83050786]
[1770565332067,4.20238379,2112.3,2111.3,2.82969523]
[1770565332263,40.8,2112.4,2110.8,4.54323118]
[1770565332264,3.22762695,2112.1,2110.8,4.54323118]
[1770565332466,3.22762695,2111.9,2110.8,0.31556482]
[1770565332667,3.22762695,2111.9,2110.6,4.22766636]
[1770565333371,3.22762695,2111.9,2110.6,0.00331877]
[1770565333867,3.22762695,2111.6,2110.6,0.00331877]
[1770565334174,3.23239574,2111.6,2110.6,0.00331877]
[1770565335472,3.23239574,2111.6,2110.3,0.31363035]
[1770565335672,3.23239574,2111.6,2109.9,4.22766636]
[1770565336666,3.23239574,2111.6,2109.9,4.23244125]
[1770565337067,2.85782298,2111.4,2109.9,4.54813476]
[1770565337268,2.85782298,2111.4,2109.9,0.3204684]
[1770565337973,2.85782298,2111.4,2109.9,4.54813476]
[1770565338274,2.85782298,2111.4,2109.9,0.3204684]
[1770565341374,2.85782298,2111.4,2109.9,0.5576284]
[1770565347982,30.633,2111.3,2109.9,0.5576284]
[1770565348178,2.81672265,2111.2,2109.9,0.5576284]
[1770565353186,2.81672265,2111.2,2109.9,4.78529476]
[1770565354490,2.81884324,2111.4,2110.5,0.23709]
[1770565355388,2.81884324,2111.4,2110.5,4.46475636]
[1770565357296,2.81884324,2111.4,2110.6,4.22766636]
[1770565357687,2.82298812,2111.9,2110.9,4.46470636]
[1770565357894,2.82298812,2112.1,2111.2,4.22766636]
[1770565358089,2.82298812,2112.1,2111.1,4.46468636]
[1770565358392,2.81547922,2112.7,2111.4,4.22766636]
[1770565358695,2.81547922,2112.4,2111.4,0.00545582]
[1770565358895,2.81547922,2112.4,2111.4,4.23312218]
[1770565359096,2.82024861,2112.3,2111.5,4.22766636]
[1770565359297,2.81547982,2112.3,2111.6,4.22766636]
[1770565359495,2.82024861,2112.3,2111.6,4.22766636]
[1770565360289,2.82024861,2112.3,2111.5,4.46464636]
[1770565361091,2.81547982,2112.3,2111.5,4.46464636]
[1770565361491,2.81547982,2112.3,2111.5,4.22766636]
[1770565361687,2.82341731,2112.1,2110.9,0.23704]
[1770565361890,2.82341731,2112.1,2110.8,2.0044898]
[1770565362097,2.25045545,2111.9,2110.8,2.0044898]
[1770565362598,2.25045545,2111.9,2110.8,2.00794518]
[1770565363199,2.25045545,2111.7,2110.8,2.3427196]
[1770565363698,0.00476879,2111.6,2110.8,2.3427196]
[1770565364494,0.00476879,2111.6,2110.8,2.5797696]
[1770565365998,2.50817126,2111.6,2110.8,2.5797696]
[1770565369491,0.00476879,2111.6,2111.0,2.34443844]
[1770565370192,2.50817126,2111.6,2111.0,2.34443844]
[1770565371700,2.50817126,2111.6,2110.8,0.00345538]
[1770565372697,2.50817126,2111.6,2110.8,2.34789382]
[1770565375103,0.00476879,2111.6,2111.0,2.34443844]
[1770565376502,0.00476879,2111.6,2110.8,0.00345538]
[1770565376503,2.50340247,2111.5,2110.8,0.00345538]
[1770565377105,2.50340247,2111.3,2110.8,0.00345538]
[1770565379899,2.50340247,2111.1,2110.5,2.34443844]
[1770565380402,2.50340247,2110.9,2110.5,2.34443844]
[1770565380605,2.50340247,2110.9,2110.4,2.54169104]
[1770565380805,2.50817126,2110.9,2110.4,2.54169104]
[1770565381005,2.51309472,2110.9,2110.4,2.54663158]
[1770565381503,0.00969225,2110.9,2110.4,2.54663158]
[1770565381695,0.00623687,2110.9,2110.5,2.29958515]
[1770565381898,0.00492346,2110.9,2110.5,2.29958515]
[1770565382897,0.00131341,2111.1,2110.5,2.29958515]
[1770565383302,2.50471588,2111.1,2110.5,2.29958515]
[1770565384105,2.51081193,2111.1,2110.5,2.29958515]
[1770565384897,0.00740946,2111.1,2110.5,2.29958515]
[1770565388004,2.51081193,2111.1,2110.5,2.29958515]
[1770565388409,2.51081193,2111.1,2110.4,0.24204054]
[1770565388804,2.51081193,2111.1,2110.5,2.34443844]
[1770565390210,2.50949852,2111.1,2110.5,2.34443844]
[1770565391606,2.50949852,2111.1,2110.5,6.59710256]
[1770565392011,2.50949852,2111.1,2110.6,2.83510883]
[1770565392207,2.50949852,2111.1,2110.6,5.17954727]
[1770565395218,2.38623724,2111.0,2110.6,5.17954727]
[1770565398820,2.38623724,2111.0,2110.7,2.39401698]
[1770565400722,2.38492383,2111.4,2110.8,2.83510883]
[1770565400918,2.38492383,2111.4,2110.9,2.39401698]
[1770565401824,2.38876029,2111.4,2110.9,2.39401698]
[1770565402217,0.00383646,2111.4,2110.9,2.39401698]
[1770565402619,0.00383646,2111.4,2110.9,5.22912581]
[1770565402813,0.00383646,2111.4,2111.0,2.39401698]
[1770565406326,0.00383646,2111.4,2111.1,2.39401698]
[1770565407027,2.38876029,2111.4,2111.1,2.39401698]
[1770565407723,0.00383646,2111.4,2111.1,2.39401698]
[1770565412431,0.00383646,2111.4,2111.2,2.39401698]
[1770565413927,2.38492383,2111.8,2111.2,2.39401698]
[1770565414228,2.38492383,2111.9,2111.2,2.39401698]
[1770565414429,2.38492383,2112.0,2111.3,2.39401698]
[1770565414630,2.38492383,2112.0,2111.4,2.39401698]
[1770565415022,2.38840505,2112.0,2111.4,2.39401698]
[1770565415420,2.38492383,2112.5,2111.7,2.39401698]
[1770565415625,2.38492383,2112.5,2111.7,5.23082481]
[1770565415932,2.38492383,2112.4,2111.8,2.39401698]
[1770565416431,2.38915967,2112.4,2111.8,2.39401698]
[1770565417133,2.38915967,2112.4,2111.4,0.23699]
[1770565417134,2.38915967,2112.4,2111.3,2.39401698]
[1770565419432,2.38915967,2112.4,2111.3,5.46782481]
[1770565419735,2.38915967,2112.4,2111.6,2.39401698]
[1770565425638,0.00423584,2112.4,2111.7,2.47132978]
[1770565425938,0.00423584,2112.4,2111.8,5.30813761]
[1770565426138,0.00423584,2112.4,2111.9,2.47132978]
[1770565426341,0.00423584,2112.4,2111.9,2.4773259]
[1770565426532,2.42161012,2112.4,2111.9,0.00599612]
[1770565437846,2.80477612,2112.4,2111.5,3.72212121]
[1770565438046,2.42161012,2112.4,2111.4,2.47132978]
[1770565438846,2.42161012,2112.4,2111.4,2.47733908]
[1770565447760,2.41737428,2112.3,2111.4,2.47733908]
[1770565447956,2.41737428,2112.2,2111.4,2.47733908]
[1770565451056,2.41737428,2112.3,2111.5,2.47132978]
[1770565456564,2.41737428,2112.3,2111.6,2.43812397]
[1770565457657,0.00423584,2112.4,2111.6,8.09287]
[1770565457858,2.22589068,2112.5,2111.8,2.43812397]
[1770565458064,2.11972966,2112.7,2111.9,2.43812397]
[1770565458763,2.11972966,2112.7,2111.9,2.67505397]
[1770565458956,2.1233201,2112.7,2111.9,2.67505397]
[1770565459155,2.09260822,2112.1,2111.4,2.44413327]
[1770565459359,2.09260822,2112.0,2111.2,2.43812397]
[1770565460269,2.14394921,2112.2,2111.3,2.43812397]
[1770565463475,2.14394921,2112.2,2111.4,2.43812397]
[1770565465175,2.14394921,2112.2,2111.5,2.43812397]
[1770565466977,2.20492501,2112.4,2111.6,2.43812397]
[1770565468072,2.20492501,2112.4,2111.7,2.43812397]
[1770565470475,2.16550798,2112.5,2111.7,2.43812397]
[1770565471379,2.16550798,2112.5,2111.8,2.43812397]
[1770565474673,2.80054028,2113.1,2112.4,0.23687]
[1770565474881,2.13968359,2113.3,2112.5,2.43812397]
[1770565475277,2.13968359,2113.3,2112.6,2.43812397]
[1770565475475,2.13968359,2113.3,2112.5,2.43812397]
[1770565475676,2.14329387,2113.3,2112.5,2.43812397]
[1770565478576,0.00361028,2113.3,2112.5,2.43812397]
[1770565478971,2.09386871,2113.3,2112.5,2.43812397]
[1770565485282,40.8,2113.2,2112.5,2.43812397]
[1770565485477,1.99839128,2113.1,2112.5,2.43812397]
[1770565486684,1.99839128,2113.1,2112.1,2.30630067]
[1770565489888,0.00361028,2113.3,2112.1,2.54321067]
[1770565490088,0.00361028,2113.3,2112.1,6.80040784]
[1770565490284,42.77102322,2113.3,2112.2,2.30630067]
[1770565490484,42.7590166,2113.3,2112.2,2.30630067]
[1770565491084,1.95546246,2113.2,2112.2,2.30630067]
[1770565491485,1.94706999,2113.3,2112.2,2.30630067]
[1770565491885,1.94345971,2113.2,2112.2,2.30630067]
[1770565492188,1.94343733,2113.0,2112.2,2.30630067]
[1770565494590,32.55443733,2113.0,2112.2,2.30630067]
[1770565494891,32.58578086,2113.0,2112.2,2.30630067]
[1770565496290,1.9486544,2112.9,2112.2,2.30630067]
[1770565501393,32.49506964,2113.0,2112.2,2.30630067]
[1770565503694,1.84950642,2112.9,2112.2,2.30630067]
[1770565504397,1.84950642,2112.9,2112.1,2.30630067]
[1770565506397,1.84950642,2112.9,2111.9,2.82909709]
[1770565506599,1.84950642,2112.9,2112.0,2.30630067]
[1770565512505,1.74514588,2112.8,2112.0,2.30630067]
[1770565514405,1.6557113,2112.7,2112.0,2.30630067]
[1770565519114,1.6557113,2112.7,2111.9,1.99688878]
[1770565526224,4.45625158,2112.7,2111.9,1.99688878]
[1770565526527,1.55327686,2112.6,2111.9,1.99688878]
[1770565529128,1.55327686,2112.6,2112.0,1.99688878]
[1770565530023,2.80054028,2112.7,2112.0,1.99688878]
[1770565530227,40.8,2113.1,2112.4,1.99688878]
[1770565530416,4.30749378,2113.2,2112.4,1.99688878]
[1770565530824,45.10749378,2113.2,2112.4,1.99688878]
[1770565531222,42.3069535,2113.2,2112.4,1.99688878]
[1770565531422,40.8,2113.2,2112.4,1.99688878]
[1770565531728,40.8,2113.2,2112.6,1.99688878]
[1770565532528,40.8,2113.2,2112.5,1.99688878]
[1770565534526,32.12498147,2113.3,2112.5,1.99688878]
[1770565534924,72.92498147,2113.3,2112.5,1.99688878]
[1770565535831,30.61360098,2113.3,2112.7,1.99688878]
[1770565536023,30.61360098,2113.3,2112.8,1.99688878]
[1770565536528,1.46210492,2113.2,2112.6,1.99688878]
[1770565536926,1.46695041,2113.2,2112.2,4.82598587]
[1770565537124,1.44616601,2113.1,2112.2,1.99688878]
[1770565537322,1.44616601,2113.1,2111.8,5.89168603]
[1770565537323,1.44616601,2112.8,2111.8,1.99688878]
[1770565537528,1.44616601,2112.6,2111.7,1.99688878]
[1770565537929,1.44616601,2112.6,2111.7,2.0014524]
[1770565540334,4.22366369,2112.8,2111.7,2.0014524]
[1770565540530,1.42312341,2112.8,2111.8,2.82909709]
[1770565540833,1.42312341,2112.8,2111.7,4.26176079]
[1770565540834,1.41162729,2112.5,2111.7,0.00456362]
[1770565541030,1.41162729,2112.3,2111.7,0.00456362]
[1770565541428,1.41162729,2112.3,2111.7,2.0014524]
[1770565541733,42.20009779,2112.2,2111.7,2.0014524]
[1770565541932,1.40009779,2112.1,2111.7,2.0014524]
[1770565542934,1.40009779,2112.1,2111.5,1.99688878]
[1770565543832,1.40009779,2112.1,2111.5,2.0002715]
[1770565544832,41.84309445,2112.7,2111.5,2.0002715]
[1770565544833,2.80054028,2112.7,2111.5,2.0002715]
[1770565545034,1.36499232,2112.5,2111.8,1.88159872]
[1770565545337,1.36499232,2112.3,2111.8,1.88159872]
[1770565547327,1.36499232,2112.3,2111.6,1.88159872]
[1770565550940,1.36499232,2112.3,2111.5,0.00338272]
[1770565551644,1.36499232,2112.3,2111.4,1.88159872]
[1770565551941,1.28852588,2112.2,2111.4,1.88159872]
[1770565552141,1.28852588,2112.2,2111.1,1.88159872]
[1770565552835,1.28852588,2112.2,2111.1,1.8864869]
[1770565553241,1.27865261,2112.1,2111.1,1.8864869]
[1770565553630,4.06793389,2112.0,2110.8,1.88159872]
[1770565553839,1.26739361,2111.8,2110.8,1.88159872]
[1770565554335,1.26739361,2111.8,2110.5,1.88159872]
[1770565554540,1.25089474,2111.6,2110.5,1.88159872]
[1770565554743,1.25483764,2111.6,2110.5,1.88512149]
[1770565555035,1.25084638,2111.4,2110.5,1.88512149]
[1770565555235,31.87084638,2111.3,2110.5,1.88512149]
[1770565556033,1.23962762,2111.2,2110.5,1.88512149]
[1770565557643,40.8,2111.5,2110.5,1.88512149]
[1770565557836,1.23497847,2111.4,2110.5,1.88512149]
[1770565558245,1.04497847,2111.4,2110.5,1.88512149]
[1770565558542,40.8,2111.5,2110.5,1.88512149]
[1770565558738,41.82538966,2111.5,2110.5,1.88512149]
[1770565559747,40.8,2111.5,2110.5,1.88512149]
[1770565559941,30.626,2111.4,2110.5,1.88512149]
[1770565560445,41.84446465,2111.5,2110.5,1.88512149]
[1770565560647,31.66030729,2111.4,2110.5,1.88512149]
[1770565561149,0.0039429,2111.6,2110.5,2.12221149]
[1770565561447,13.591,2111.5,2110.6,1.88159872]
[1770565562341,13.591,2111.5,2110.7,1.88159872]
[1770565562744,0.0039429,2111.6,2110.7,1.88159872]
[1770565562952,26.85532928,2111.5,2110.7,1.88159872]
[1770565563246,26.75811317,2111.5,2110.7,1.88159872]
[1770565563446,1.78270199,2111.4,2110.7,1.88159872]
[1770565563949,1.78270199,2111.4,2110.5,0.81182422]
[1770565564948,1.78270199,2111.4,2110.5,1.22983479]
[1770565565353,1.78270199,2111.4,2110.5,0.00352277]
[1770565565657,1.78270199,2111.2,2110.5,0.00352277]
[1770565570655,1.78270199,2111.0,2110.2,1.2042169]